[Event "CCT Chessable Masters D-III 2024"]
[Site "Online"]
[Date "2024.02.02"]
[Round "1"]
[White "Matlakov, Maxim"]
[Black "Antipov, Mikhail Al."]
[Result "1-0"]
[ECO "D38"]
[WhiteElo "2662"]
[BlackElo "2604"]
[Annotator "TA"]
[PlyCount "53"]
[EventDate "2024.01.12"]
[EventType "k.o."]
[EventCountry "NET"]
[SourceTitle "playchess.com"]
[Source "ChessBase"]
[SourceQuality "1"]
[TimeControl "600+2"]

{[%evp 16,53,30,10,17,21,20,11,24,26,25,27,26,22,36,27,31,14,32,17,30,0,12,14,35,14,14,14,50,48,43,45,131,152,559,565,1054,1031,1829,1794]} 1. d4 {[%emt 0:00:03]} Nf6 {[%emt 0:00:04]} 2. c4 {[%emt 0:00:01]} e6 {[%emt 0:00:01]} 3. Nf3 {[%emt 0:00:03]} d5 {[%emt 0:00:01]} 4. Nc3 {[%emt 0:00:01]} Bb4 {[%emt 0:00:02]} 5. Bg5 {[%emt 0:00:02]} h6 {[%emt 0:00:02]} 6. Bxf6 {[%emt 0:00:02]} Qxf6 {[%emt 0:00:00]} 7. e3 {[%emt 0:00:00]} O-O {[%emt 0:00:04]} 8. Rc1 {[%emt 0:00:02]} c6 {[%emt 0:00:12]} 9. Bd3 {[%emt 0:00:03]} Nd7 {[%emt 0:00:06]} 10. Qb3 {[%emt 0:00:14]} Qe7 {[%emt 0:00:06]} 11. O-O {[%emt 0:00:03]} Bd6 {[%emt 0:00:49] The position is equal.} 12. c5 {[%emt 0:00:07]} Bc7 {[%emt 0:00:05]} 13. e4 {[%emt 0:00:01]} dxe4 {[%emt 0:00:56]} 14. Nxe4 {[%emt 0:00:08]} Rd8 {[%emt 0:00:04]} 15. Rfe1 {[%emt 0:01:01][%cal Bf1e1,Be1e4,Be4g4][%mdl 32]} Rb8 {[%emt 0:00:54]} 16. Qc2 {[%emt 0:00:15]} Nf8 {[%emt 0:01:07]} 17. Ng3 {[%emt 0:01:24]} Bd7 {[%emt 0:00:14]} 18. Re4 {[%emt 0:00:20]} Be8 {[%emt 0:02:27]} 19. Rce1 {[%emt 0:00:05]} b6 {[%emt 0:00:10]} 20. Rg4 {[%emt 0:01:14]} Bxg3 {[%emt 0:00:04]} (20... bxc5 $2 21. Rxg7+ (21. Nf5 Qf6 $18) 21... Kxg7 22. Nf5+ (22. Qxc5 $2 Qxc5 23. dxc5 Rxd3 $19) 22... exf5 23. Rxe7 $18) 21. hxg3 {[%emt 0:00:39]} bxc5 {[%emt 0:00:01]} 22. dxc5 {[%emt 0:00:05]} Nd7 {[%emt 0:00:05]} 23. b4 {[%emt 0:00:09] Threatens to win with Nd4.} a5 {[%emt 0:00:13] [#]} 24. Nd4 $1 $40 {[%emt 0:00:30][%mdl 128] Black is in trouble. White has more active pieces.} (24. bxa5 $6 Qxc5 25. Qd2 Nf6 $11) 24... Ne5 {[%emt 0:02:08]} (24... Qf8 $16 {is more resistant.}) 25. Rxe5 $18 {[%emt 0:00:11][%cal Og4g7] And now Rxg7+! would win. White is clearly winning.} Rxb4 {[%emt 0:00:36] [#]} 26. Rxg7+ $3 {[%emt 0:00:38][%mdl 512]} Kf8 {[%emt 0:00:07] [#]} (26... Kxg7 27. Nf5+) 27. Nxe6+ $1 {[%emt 0:00:04] Weighted Error Value: White=0.05 (flawless) /Black=0.37.  Loses game:     	---       	Black=1      Mistake:       	---       	Black=1      Inaccurate:     	White=1     	Black=3      OK:         	White=7     	Black=5      Best:        	White=1     	Black=1      Strong:       	White=1     	---        Brilliant:      	White=1     	---} 1-0

[Event "CCT Chessable Masters D-III 2024"]
[Site "Online"]
[Date "2024.02.02"]
[Round "1"]
[White "Shevchenko, Kirill"]
[Black "Santos Latasa, Jaime"]
[Result "0-1"]
[ECO "C52"]
[WhiteElo "2651"]
[BlackElo "2615"]
[Annotator "TA"]
[PlyCount "86"]
[EventDate "2024.01.12"]
[EventType "k.o."]
[EventCountry "NET"]
[SourceTitle "playchess.com"]
[Source "ChessBase"]
[SourceQuality "1"]
[TimeControl "600+2"]

{[%evp 17,86,-63,-7,-12,0,0,0,-14,-33,-52,42,43,33,31,44,50,41,43,69,42,38,33,49,26,11,-29,2,0,0,0,16,-5,0,0,0,-10,4,-21,-30,-39,-47,-230,-115,-171,-179,-163,-164,-160,-151,-155,-139,-363,-83,-207,-131,-205,-172,-208,-201,-204,-203,-371,-378,-386,-369,-700,-700,-697,-677,-636,-636]} 1. e4 {[%emt 0:00:11]} e5 {[%emt 0:00:06]} 2. Nf3 {[%emt 0:00:00]} Nc6 {[%emt 0:00:01]} 3. Bc4 {[%emt 0:00:01]} Bc5 {[%emt 0:00:02]} 4. b4 {[%emt 0:00:01]} Bxb4 {[%emt 0:00:02]} 5. c3 {[%emt 0:00:02]} Ba5 {[%emt 0:00:01]} 6. d4 {[%emt 0:00:03]} d6 {[%emt 0:00:02][%cal Bd7d6,Bd6d5][%mdl 32]} 7. Qb3 {[%emt 0:00:28]} Qd7 {[%emt 0:00:07]} 8. Nbd2 {[%emt 0:00:16]} Bb6 {[%emt 0:00:03]} 9. dxe5 {[%emt 0:00:07]} Na5 {[%emt 0:00:18]} (9... dxe5 $15 10. a4 Nf6) 10. Qc2 {[%emt 0:00:04]} Nxc4 {[%emt 0:00:01]} 11. Nxc4 {[%emt 0:00:02]} d5 {[%emt 0:00:13]} 12. Nxb6 {[%emt 0:01:22] The position is equal.} axb6 {[%emt 0:00:00]} 13. O-O {[%emt 0:00:01][%cal Bh1f1,Bf1d1,Bd1d4][%mdl 32]} Ne7 {[%emt 0:00:02]} ({Better is} 13... dxe4 $1 $15 14. Qxe4 Ne7) 14. Rd1 $14 {[%emt 0:00:03]} Qc6 {[%emt 0:00:31]} 15. Nd4 {[%emt 0:00:44]} Qc4 {[%emt 0:00:04]} 16. Bg5 {[%emt 0:00:26] [#] aiming for Bxe7.} Ng6 {[%emt 0:02:05]} 17. exd5 {[%emt 0:00:37]} O-O {[%emt 0:00:03]} 18. Nf3 {[%emt 0:00:35]} Ra3 {[%emt 0:00:20]} 19. Rd4 {[%emt 0:01:26]} Qxc3 {[%emt 0:00:06]} 20. Qxc3 {[%emt 0:00:01]} Rxc3 {[%emt 0:00:02]} 21. d6 {[%emt 0:00:00] [#] d7 would now be deadly.} Bd7 {[%emt 0:00:58]} 22. dxc7 {[%emt 0:01:49]} Rxc7 {[%emt 0:00:03]} 23. h4 {[%emt 0:00:26][%cal Bh2h4,Bh4h5][%mdl 32]} h6 {[%emt 0:00:29]} 24. Be3 {[%emt 0:00:07]} (24. h5 $5) 24... Bc6 {[%emt 0:00:05]} 25. h5 {[%emt 0:00:10]} Ne7 {[%emt 0:00:03]} 26. Nh4 {[%emt 0:00:04]} Nd5 {[%emt 0:01:09]} 27. Nf5 {[%emt 0:00:10]} Re8 {[%emt 0:00:24]} 28. f4 {[%emt 0:00:13]} f6 {[%emt 0:00:26]} 29. Nd6 $2 {[%emt 0:01:04]} ({White should try} 29. Re4 $15) 29... Re6 {[%emt 0:00:04]} ({Black should play} 29... Nxe3 $19 30. Nxe8 Bxe8) 30. Bf2 {[%emt 0:00:10]} (30. Re4 $17) 30... fxe5 $19 {[%emt 0:00:07]} 31. fxe5 {[%emt 0:00:01]} Rxe5 {[%emt 0:00:08]} 32. g4 {[%emt 0:00:06]} Rce7 {[%emt 0:00:26]} 33. Nf5 {[%emt 0:00:04]} Re8 {[%emt 0:00:05]} 34. Rad1 $2 {[%emt 0:00:03]} (34. a3 $17) 34... Nf6 $2 {[%emt 0:00:11]} (34... Nc3 $19 {has better winning chances.} 35. Kh2 Nxd1 36. Rxd1 Re2) 35. Bg3 {[%emt 0:00:05]} (35. Bh4 $17) 35... Ra5 {[%emt 0:01:15]} 36. Rd8 {[%emt 0:00:01]} (36. Bh4 $17 {was called for.}) 36... Nxg4 {[%emt 0:00:21]} 37. Ne7+ {[%emt 0:00:06]} Kf7 {[%emt 0:00:01]} 38. Nxc6 {[%emt 0:00:02]} bxc6 {[%emt 0:00:00]} 39. Rf1+ $2 {[%emt 0:00:06]} (39. R1d7+ Re7 40. Rxe7+ Kxe7 41. Rc8) 39... Nf6 {[%emt 0:00:02]} 40. Rd6 {[%emt 0:00:02]} Rg5 {[%emt 0:00:03]} (40... Rxa2 41. Rxc6 b5 42. Rf4 $17) 41. Kh2 {[%emt 0:00:02]} (41. Rf3) 41... Re2+ {[%emt 0:00:02] Black is clearly winning.} 42. Rf2 {[%emt 0:00:03]} Rxf2+ {[%emt 0:00:02]} 43. Bxf2 {[%emt 0:00:00]} Ne4 {[%emt 0:00:04] Weighted Error Value: White=0.44/Black=0.32.  Loses game:     	White=2     	---        Missed win:     	---       	Black=1      Mistake:       	White=5     	Black=2      Inaccurate:     	White=2     	Black=3      OK:         	White=7     	Black=14     Best:        	White=3     	Black=2} (43... Nxh5 44. Bxb6 Re5 45. a4 $17) 0-1

[Event "CCT Chessable Masters D-III 2024"]
[Site "Online"]
[Date "2024.02.02"]
[Round "1"]
[White "Malakhov, Vladimir"]
[Black "Mishra, Abhimanyu"]
[Result "0-1"]
[ECO "D78"]
[WhiteElo "2648"]
[BlackElo "2627"]
[Annotator "TA"]
[PlyCount "70"]
[EventDate "2024.01.12"]
[EventType "k.o."]
[EventCountry "NET"]
[SourceTitle "playchess.com"]
[Source "ChessBase"]
[SourceQuality "1"]
[TimeControl "600+2"]

{[%evp 18,70,18,20,35,43,52,14,19,-31,0,0,0,0,0,0,39,33,58,-354,-328,-342,-339,-365,-364,-360,-355,-409,-412,-470,-468,-539,-521,-534,-531,-610,-600,-608,-598,-699,-660,-741,-729,-888,-900,-1014,-995,-1169,-1169,-1395,-1343,-5494,-4731,-2451,-2189]} 1. Nf3 {[%emt 0:00:05]} d5 {[%emt 0:00:05]} 2. g3 {[%emt 0:00:02]} g6 {[%emt 0:00:03]} 3. Bg2 {[%emt 0:00:01]} Bg7 {[%emt 0:00:02]} 4. d4 {[%emt 0:00:02]} c6 {[%emt 0:00:02]} 5. O-O {[%emt 0:00:03]} Nf6 {[%emt 0:00:02]} 6. c4 {[%emt 0:00:04]} O-O {[%emt 0:00:03]} 7. Qb3 {[%emt 0:00:03]} dxc4 {[%emt 0:00:34]} 8. Qxc4 {[%emt 0:00:02]} Bf5 {[%emt 0:00:07]} 9. Nc3 {[%emt 0:00:44]} Nbd7 {[%emt 0:00:24]} 10. Re1 {[%emt 0:00:27]} Nb6 {[%emt 0:01:21] Wards off e4} 11. Qb3 {[%emt 0:00:13]} Ne4 {[%emt 0:00:24]} 12. Be3 {[%emt 0:00:52]} a5 {[%emt 0:01:00] The position is equal.} 13. Ne5 {[%emt 0:01:41]} ({White should try} 13. Nh4 $11 a4 14. Qd1 Nxc3 15. bxc3) 13... a4 {[%emt 0:01:07]} 14. Qb4 {[%emt 0:00:08]} Nxc3 {[%emt 0:00:30]} 15. bxc3 {[%emt 0:00:04]} Nd5 {[%emt 0:00:15]} 16. Bxd5 {[%emt 0:02:23]} cxd5 {[%emt 0:01:00]} 17. Qxb7 {[%emt 0:00:32] [#] And now Nc6 would win.} Qd6 {[%emt 0:00:06][%cal Of8b8] Threatens to win with ...Rfb8!} 18. Bf4 $2 {[%emt 0:00:21][%mdl 8192] Now White is beyond hope.} (18. Nc6 $14 {keeps the upper hand.} Rfe8 19. Nb4) 18... Rfb8 $19 {[%emt 0:00:48]} 19. Nxf7 {[%emt 0:00:32]} Rxb7 {[%emt 0:00:12]} ({Weaker is} 19... Kxf7 20. Qxa8 Rxa8 21. Bxd6 exd6 22. Rec1) 20. Nxd6 {[%emt 0:00:01]} exd6 {[%emt 0:00:02]} 21. Bxd6 {[%emt 0:00:01] White is weak on the light squares} Rb2 {[%emt 0:00:31]} 22. a3 {[%emt 0:00:39]} Re8 {[%emt 0:00:10]} 23. e3 {[%emt 0:00:04]} Be4 {[%emt 0:00:28] Black is clearly winning.} 24. Rec1 {[%emt 0:00:34]} Re6 {[%emt 0:00:23]} 25. Bf4 {[%emt 0:00:08]} Rc6 {[%emt 0:00:07]} 26. h4 {[%emt 0:00:13]} Bf8 {[%emt 0:00:04]} 27. g4 {[%emt 0:00:02]} Rc4 {[%emt 0:00:24]} 28. Rf1 {[%emt 0:00:13]} Rxc3 {[%emt 0:00:12]} 29. f3 {[%emt 0:00:01]} Bc2 {[%emt 0:00:11]} 30. Rf2 {[%emt 0:00:08]} Rxa3 {[%emt 0:00:06]} 31. Rc1 {[%emt 0:00:04]} Rc3 {[%emt 0:00:02]} 32. e4 {[%emt 0:00:13]} a3 {[%emt 0:00:03] ...a2 would now be deadly.} 33. exd5 {[%emt 0:00:02]} a2 {[%emt 0:00:02] [#] Hoping for ...Rb1.} 34. d6 {[%emt 0:00:04]} Rb1 {[%emt 0:00:05]} 35. d7 {[%emt 0:00:02]} Be7 {[%emt 0:00:03] Weighted Error Value: White=0.84/Black=0.06 (flawless) .  Loses game:     	White=1     	---        Mistake:       	White=1     	---        Inaccurate:     	White=1     	Black=2      OK:         	White=6     	Black=9      Best:        	---       	Black=2} (35... a1=B $2 {perishes.} 36. Rxb1 (36. d8=R Rxc1+ 37. Bxc1 Kf7 $14) 36... Be7 37. Rxa1 $18) 0-1

[Event "CCT Chessable Masters D-III 2024"]
[Site "Online"]
[Date "2024.02.02"]
[Round "1"]
[White "MashaPutina"]
[Black "Zlatan56"]
[Result "1/2-1/2"]
[ECO "D35"]
[WhiteElo "2644"]
[BlackElo "2635"]
[Annotator "NA"]
[PlyCount "127"]
[EventDate "2024.01.12"]
[EventType "k.o."]
[EventCountry "NET"]
[SourceTitle "playchess.com"]
[Source "ChessBase"]
[SourceQuality "1"]
[TimeControl "600+2"]

1. d4 {[%emt 0:00:03]} d5 {[%emt 0:00:06]} 2. c4 {[%emt 0:00:01]} e6 {[%emt 0:00:02]} 3. Nf3 {[%emt 0:00:01]} Nf6 {[%emt 0:00:02]} 4. Nc3 {[%emt 0:00:02]} Be7 {[%emt 0:00:01]} 5. cxd5 {[%emt 0:00:01]} exd5 {[%emt 0:00:05]} 6. Bf4 {[%emt 0:00:02]} c6 {[%emt 0:00:17]} 7. h3 {[%emt 0:00:05]} Bf5 {[%emt 0:00:15]} 8. g4 {[%emt 0:00:02]} Bg6 {[%emt 0:00:20]} 9. Ne5 {[%emt 0:00:03]} Nbd7 {[%emt 0:00:26]} 10. Nxg6 {[%emt 0:00:15]} hxg6 {[%emt 0:00:00]} 11. e3 {[%emt 0:00:02]} Nf8 {[%emt 0:00:09]} 12. Qb3 {[%emt 0:00:31]} Qb6 {[%emt 0:00:10]} 13. f3 {[%emt 0:00:02]} Ne6 {[%emt 0:00:10]} 14. Bg3 {[%emt 0:00:03]} Qxb3 {[%emt 0:00:28]} 15. axb3 {[%emt 0:00:02]} a6 {[%emt 0:00:00]} 16. h4 {[%emt 0:00:55]} g5 {[%emt 0:01:32]} 17. Bd3 {[%emt 0:00:35]} g6 {[%emt 0:00:24]} 18. Ke2 {[%emt 0:00:12]} gxh4 {[%emt 0:00:35]} 19. Rxh4 {[%emt 0:00:03]} Rxh4 {[%emt 0:00:03]} 20. Bxh4 {[%emt 0:00:02]} Kd7 {[%emt 0:00:11]} 21. g5 {[%emt 0:00:40]} Nh5 {[%emt 0:00:14]} 22. f4 {[%emt 0:00:02]} Rh8 {[%emt 0:00:05]} 23. Bf2 {[%emt 0:00:03]} Nhxf4+ {[%emt 0:00:48]} 24. exf4 {[%emt 0:00:06]} Nxf4+ {[%emt 0:00:00]} 25. Ke3 {[%emt 0:00:34]} Bxg5 {[%emt 0:00:11]} 26. Bf1 {[%emt 0:00:02]} Nh3+ {[%emt 0:00:35]} 27. Kf3 {[%emt 0:00:03]} Nxf2 {[%emt 0:00:00]} 28. Kxf2 {[%emt 0:00:01]} Rh4 {[%emt 0:00:40]} 29. Rd1 {[%emt 0:00:05]} f5 {[%emt 0:00:34]} 30. Ne2 {[%emt 0:00:41]} Bf6 {[%emt 0:00:04]} 31. Bg2 {[%emt 0:00:02]} g5 {[%emt 0:00:14]} 32. Rd3 {[%emt 0:00:24]} a5 {[%emt 0:00:51]} 33. Kf1 {[%emt 0:00:13]} Ke6 {[%emt 0:00:09]} 34. Re3+ {[%emt 0:00:21]} Kf7 {[%emt 0:00:23]} 35. Rh3 {[%emt 0:01:06]} Rxh3 {[%emt 0:00:10]} 36. Bxh3 {[%emt 0:00:02]} g4 {[%emt 0:00:01]} 37. Bg2 {[%emt 0:00:01]} Bg5 {[%emt 0:00:04]} 38. Kf2 {[%emt 0:00:07]} f4 {[%emt 0:00:04]} 39. Nc3 {[%emt 0:00:35]} f3 {[%emt 0:00:04]} 40. Bf1 {[%emt 0:00:03]} Bc1 {[%emt 0:00:03]} 41. Kg3 {[%emt 0:00:30]} Bxb2 {[%emt 0:00:06]} 42. Nd1 {[%emt 0:00:01]} Bxd4 {[%emt 0:00:02]} 43. Kxg4 {[%emt 0:00:00]} f2 {[%emt 0:00:04]} 44. Kf3 {[%emt 0:00:03]} Ke6 {[%emt 0:00:17]} 45. Nxf2 {[%emt 0:00:01]} Bxf2 {[%emt 0:00:02]} 46. Kxf2 {[%emt 0:00:01]} Kd6 {[%emt 0:00:00]} 47. Ke3 {[%emt 0:00:03]} Kc5 {[%emt 0:00:01]} 48. Kd3 {[%emt 0:00:01]} Kb4 {[%emt 0:00:01]} 49. Kc2 {[%emt 0:00:01]} b5 {[%emt 0:00:03]} 50. Bh3 {[%emt 0:00:18]} c5 {[%emt 0:00:04]} 51. Be6 {[%emt 0:00:02]} d4 {[%emt 0:00:03]} 52. Kd3 {[%emt 0:00:01]} a4 {[%emt 0:00:09]} 53. bxa4 {[%emt 0:00:01]} Kxa4 {[%emt 0:00:01]} 54. Bd7 {[%emt 0:00:06]} Kb4 {[%emt 0:00:06]} 55. Be8 {[%emt 0:00:03]} Ka5 {[%emt 0:00:02]} 56. Bd7 {[%emt 0:00:03]} Kb6 {[%emt 0:00:05]} 57. Be8 {[%emt 0:00:01]} Ka5 {[%emt 0:00:02]} 58. Bd7 {[%emt 0:00:01]} Kb4 {[%emt 0:00:01]} 59. Be8 {[%emt 0:00:02]} c4+ {[%emt 0:00:09]} 60. Kxd4 {[%emt 0:00:01]} c3 {[%emt 0:00:00]} 61. Kd3 {[%emt 0:00:17]} Kb3 {[%emt 0:00:02]} 62. Bxb5 {[%emt 0:00:01]} c2 {[%emt 0:00:01]} 63. Ba4+ {[%emt 0:00:01]} Kxa4 {[%emt 0:00:01]} 64. Kxc2 {[%emt 0:00:01]} 1/2-1/2

[Event "CCT Chessable Masters D-III 2024"]
[Site "Online"]
[Date "2024.02.02"]
[Round "1"]
[White "MashaPutina"]
[Black "Zlatan56"]
[Result "1-0"]
[ECO "D32"]
[WhiteElo "2644"]
[BlackElo "2635"]
[Annotator "NA"]
[PlyCount "131"]
[EventDate "2024.01.12"]
[EventType "k.o."]
[EventCountry "NET"]
[SourceTitle "playchess.com"]
[Source "ChessBase"]
[SourceQuality "1"]
[TimeControl "600+2"]

1. d4 {[%emt 0:00:02]} d5 {[%emt 0:00:07]} 2. c4 {[%emt 0:00:02]} e6 {[%emt 0:00:00]} 3. Nc3 {[%emt 0:00:01]} c5 {[%emt 0:00:02]} 4. cxd5 {[%emt 0:00:02]} cxd4 {[%emt 0:00:01]} 5. Qa4+ {[%emt 0:00:03]} Bd7 {[%emt 0:00:03]} 6. Qxd4 {[%emt 0:00:01]} exd5 {[%emt 0:00:04]} 7. Qxd5 {[%emt 0:00:08]} Nf6 {[%emt 0:00:10]} 8. Qb3 {[%emt 0:00:27]} Na6 {[%emt 0:00:04]} 9. Nf3 {[%emt 0:00:05]} Nc5 {[%emt 0:00:06]} 10. Qc2 {[%emt 0:00:05]} Rc8 {[%emt 0:00:08]} 11. e3 {[%emt 0:00:07]} Nce4 {[%emt 0:00:12]} 12. Bd3 {[%emt 0:00:12]} Nxc3 {[%emt 0:00:11]} 13. bxc3 {[%emt 0:00:02]} Nd5 {[%emt 0:00:20]} 14. Bd2 {[%emt 0:02:26]} Nb4 {[%emt 0:01:57]} 15. Qb1 {[%emt 0:00:02]} Nxd3+ {[%emt 0:00:01]} 16. Qxd3 {[%emt 0:00:01]} Bc6 {[%emt 0:00:12]} 17. Qf5 {[%emt 0:00:01]} Be7 {[%emt 0:01:08]} 18. Nd4 {[%emt 0:00:11]} Bxg2 {[%emt 0:00:33]} 19. Rg1 {[%emt 0:00:03]} g6 {[%emt 0:00:08]} 20. Qe5 {[%emt 0:00:30]} f6 {[%emt 0:00:03]} 21. Qb5+ {[%emt 0:00:04]} Bc6 {[%emt 0:00:03]} 22. Nxc6 {[%emt 0:00:01]} Rxc6 {[%emt 0:00:32]} 23. Qxb7 {[%emt 0:00:17]} Rd6 {[%emt 0:00:06]} 24. Rd1 {[%emt 0:00:10]} f5 {[%emt 0:00:48]} 25. Ke2 {[%emt 0:00:09]} Qa5 {[%emt 0:01:00]} 26. Qc8+ {[%emt 0:00:35]} Bd8 {[%emt 0:00:36]} 27. Qc4 {[%emt 0:01:52]} Qa6 {[%emt 0:00:06]} 28. Qxa6 {[%emt 0:00:01]} Rxa6 {[%emt 0:00:00]} 29. Ra1 {[%emt 0:00:01]} Kd7 {[%emt 0:00:13]} 30. Rgb1 {[%emt 0:00:03]} Bc7 {[%emt 0:00:06]} 31. h3 {[%emt 0:00:01]} Re8 {[%emt 0:00:14]} 32. a4 {[%emt 0:00:03]} Kc6 {[%emt 0:00:24]} 33. Rb4 {[%emt 0:00:04]} Bd6 {[%emt 0:00:18]} 34. Rc4+ {[%emt 0:00:04]} Bc5 {[%emt 0:00:15]} 35. Rb1 {[%emt 0:00:02]} Re4 {[%emt 0:00:06]} 36. Rxe4 {[%emt 0:01:11]} fxe4 {[%emt 0:00:00]} 37. Ra1 {[%emt 0:00:02]} Kd5 {[%emt 0:00:08]} 38. a5 {[%emt 0:00:01]} Rf6 {[%emt 0:00:28]} 39. h4 {[%emt 0:00:13]} Rf5 {[%emt 0:00:05]} 40. Be1 {[%emt 0:00:07]} Be7 {[%emt 0:00:07]} 41. Rd1+ {[%emt 0:00:03]} Kc6 {[%emt 0:00:01]} 42. Rd4 {[%emt 0:00:03]} Re5 {[%emt 0:00:04]} 43. Rc4+ {[%emt 0:00:10]} Bc5 {[%emt 0:00:06]} 44. Ra4 {[%emt 0:00:03]} Kb5 {[%emt 0:00:03]} 45. Ra1 {[%emt 0:00:02]} Be7 {[%emt 0:00:01]} 46. f4 {[%emt 0:00:03]} exf3+ {[%emt 0:00:02]} 47. Kxf3 {[%emt 0:00:01]} Rf5+ {[%emt 0:00:05]} 48. Ke2 {[%emt 0:00:03]} Kc6 {[%emt 0:00:03]} 49. a6 {[%emt 0:00:04]} Rh5 {[%emt 0:00:02]} 50. Ra4 {[%emt 0:00:03]} Kb5 {[%emt 0:00:01]} 51. Re4 {[%emt 0:00:02]} Bc5 {[%emt 0:00:03]} 52. Re6 {[%emt 0:00:08]} Bb6 {[%emt 0:00:02]} 53. e4 {[%emt 0:00:01]} Kxa6 {[%emt 0:00:01]} 54. c4 {[%emt 0:00:03]} Kb7 {[%emt 0:00:01]} 55. e5 {[%emt 0:00:05]} Bd4 {[%emt 0:00:04]} 56. Bg3 {[%emt 0:00:03]} a5 {[%emt 0:00:02]} 57. Kd3 {[%emt 0:00:00]} Bc5 {[%emt 0:00:02]} 58. Rf6 {[%emt 0:00:06]} Rf5 {[%emt 0:00:01]} 59. Ke4 {[%emt 0:00:05]} Rxf6 {[%emt 0:00:02]} 60. exf6 {[%emt 0:00:01]} Kc6 {[%emt 0:00:01]} 61. Ke5 {[%emt 0:00:03]} a4 {[%emt 0:00:01]} 62. Be1 {[%emt 0:00:02]} Kd7 {[%emt 0:00:03]} 63. Kd5 {[%emt 0:00:01]} Be3 {[%emt 0:00:04]} 64. c5 {[%emt 0:00:03]} Ke8 {[%emt 0:00:05]} 65. c6 {[%emt 0:00:03]} Bb6 {[%emt 0:00:01]} 66. Ke6 {[%emt 0:00:02]} 1-0